[Event "Titled Tuesday Blitz February 21 Late 2023"]
[White "Rios Escobar, Adan"]
[Black "Kokoszczynski, Jan"]
[WhiteFideId "3403645"]
[BlackFideId "1174460"]
[WhiteElo "2234"]
[BlackElo "2247"]
[Result "1-0"]
[Round "04"]
[TimeControl "180+2"]
[Date "2023.02.21"]
[WhiteClock "0:00:07"]
[BlackClock "0:00:01"]

1. d4 {[%clk 0:02:52]}  d5 {[%clk 0:02:57]} 2. Nf3 {[%clk 0:02:51]}  Nf6 {[%clk 0:02:55]} 3. g3 {[%clk 0:02:52]}  c6 {[%clk 0:02:55]} 4. c4 {[%clk 0:02:51]}  dxc4 {[%clk 0:02:50]} 5. Bg2 {[%clk 0:02:51]}  Bf5 {[%clk 0:02:46]} 6. O-O {[%clk 0:02:50]}  e6 {[%clk 0:02:43]} 7. a4 {[%clk 0:02:46]}  a5 {[%clk 0:02:42]} 8. Ne5 {[%clk 0:02:38]}  Nbd7 {[%clk 0:02:39]} 9. Nxc4 {[%clk 0:02:37]}  Nb6 {[%clk 0:02:30]} 10. Ne5 {[%clk 0:02:35]}  Be7 {[%clk 0:02:30]} 11. Nc3 {[%clk 0:02:35]}  O-O {[%clk 0:02:28]} 12. e4 {[%clk 0:02:33]}  Bg6 {[%clk 0:02:28]} 13. Be3 {[%clk 0:02:15]}  Nbd7 {[%clk 0:02:04]} 14. Nxg6 {[%clk 0:02:14]}  hxg6 {[%clk 0:02:04]} 15. h4 {[%clk 0:02:14]}  Nb6 {[%clk 0:01:55]} 16. Qe2 {[%clk 0:02:12]}  Bb4 {[%clk 0:01:53]} 17. Rfd1 {[%clk 0:02:10]}  Qe7 {[%clk 0:01:52]} 18. Bg5 {[%clk 0:02:04]}  Qd7 {[%clk 0:01:45]} 19. Bxf6 {[%clk 0:01:57]}  gxf6 {[%clk 0:01:46]} 20. h5 {[%clk 0:01:56]}  Kg7 {[%clk 0:01:44]} 21. Bf3 {[%clk 0:01:44]}  Rh8 {[%clk 0:01:43]} 22. Kg2 {[%clk 0:01:44]}  Rag8 {[%clk 0:01:27]} 23. Rd3 {[%clk 0:01:26]}  Be7 {[%clk 0:01:23]} 24. d5 {[%clk 0:01:16]}  cxd5 {[%clk 0:01:21]} 25. exd5 {[%clk 0:01:16]}  e5 {[%clk 0:01:20]} 26. d6 {[%clk 0:01:16]}  Bd8 {[%clk 0:01:18]} 27. Nb5 {[%clk 0:01:10]}  Re8 {[%clk 0:01:13]} 28. Rb3 {[%clk 0:00:53]}  f5 {[%clk 0:01:10]} 29. hxg6 {[%clk 0:00:41]}  fxg6 {[%clk 0:01:07]} 30. Qd2 {[%clk 0:00:37]}  e4 {[%clk 0:01:04]} 31. Be2 {[%clk 0:00:35]}  f4 {[%clk 0:01:04]} 32. gxf4 {[%clk 0:00:32]}  Bf6 {[%clk 0:00:51]} 33. Rg3 {[%clk 0:00:30]}  Rh4 {[%clk 0:00:35]} 34. Rg1 {[%clk 0:00:26]}  Rg8 {[%clk 0:00:14]} 35. Kf1 {[%clk 0:00:25]}  Kh7 {[%clk 0:00:14]} 36. Bg4 {[%clk 0:00:19]}  Qc6 {[%clk 0:00:11]} 37. Be6 {[%clk 0:00:17]}  Rg7 {[%clk 0:00:11]} 38. f5 {[%clk 0:00:15]}  g5 {[%clk 0:00:10]} 39. b3 {[%clk 0:00:13]}  Qc5 {[%clk 0:00:06]} 40. Kg2 {[%clk 0:00:11]}  Qe5 {[%clk 0:00:05]} 41. Rh1 {[%clk 0:00:09]}  Kh8 {[%clk 0:00:03]} 42. Rgh3 {[%clk 0:00:07]}  e3 {[%clk 0:00:01]} 43. Qxe3 {[%clk 0:00:07]} 1-0


[Site "https://www.chess.com"]

[Event "Titled Tuesday Blitz February 21 Late 2023"]
[White "mohsengabr2002"]
[Black "Mortazavi, Ali"]
[BlackFideId "401323"]
[WhiteElo "2349"]
[BlackElo "2333"]
[Result "1/2-1/2"]
[Round "04"]
[TimeControl "180+2"]
[Date "2023.02.21"]
[WhiteClock "0:00:19"]
[BlackClock "0:00:17"]

1. b3 {[%clk 0:02:59]}  b6 {[%clk 0:02:59]} 2. a4 {[%clk 0:02:57]}  Bb7 {[%clk 0:03:00]} 3. a5 {[%clk 0:02:56]}  bxa5 {[%clk 0:03:00]} 4. Rxa5 {[%clk 0:02:56]}  c5 {[%clk 0:03:00]} 5. Ra4 {[%clk 0:02:55]}  Nf6 {[%clk 0:03:00]} 6. Bb2 {[%clk 0:02:55]}  e6 {[%clk 0:02:59]} 7. e3 {[%clk 0:02:55]}  Qc7 {[%clk 0:02:59]} 8. Nf3 {[%clk 0:02:55]}  Nc6 {[%clk 0:02:59]} 9. Rg1 {[%clk 0:02:54]}  h5 {[%clk 0:02:52]} 10. h3 {[%clk 0:02:54]}  h4 {[%clk 0:02:51]} 11. Rxh4 {[%clk 0:02:54]}  Rxh4 {[%clk 0:02:48]} 12. Nxh4 {[%clk 0:02:55]}  a5 {[%clk 0:02:36]} 13. Bb5 {[%clk 0:02:49]}  Nb4 {[%clk 0:02:29]} 14. Nc3 {[%clk 0:02:48]}  Qh2 {[%clk 0:02:23]} 15. Rf1 {[%clk 0:02:45]}  g5 {[%clk 0:02:18]} 16. Nf3 {[%clk 0:02:45]}  Qxg2 {[%clk 0:02:17]} 17. Be2 {[%clk 0:02:36]}  g4 {[%clk 0:02:08]} 18. hxg4 {[%clk 0:02:34]}  Nxg4 {[%clk 0:02:07]} 19. Nh4 {[%clk 0:02:31]}  Qh3 {[%clk 0:01:47]} 20. Bxg4 {[%clk 0:02:27]}  Qxh4 {[%clk 0:01:48]} 21. Nb5 {[%clk 0:02:05]}  O-O-O {[%clk 0:01:37]} 22. Be5 {[%clk 0:02:03]}  d6 {[%clk 0:01:36]} 23. Bg3 {[%clk 0:02:02]}  Nxc2+ {[%clk 0:01:30]} 24. Qxc2 {[%clk 0:02:02]}  Qxg4 {[%clk 0:01:31]} 25. d4 {[%clk 0:01:38]}  Ba6 {[%clk 0:01:18]} 26. Qc4 {[%clk 0:01:11]}  Qe4 {[%clk 0:01:18]} 27. Nxd6+ {[%clk 0:00:59]}  Rxd6 {[%clk 0:01:17]} 28. Qxc5+ {[%clk 0:01:00]}  Kd7 {[%clk 0:01:00]} 29. Bxd6 {[%clk 0:00:54]}  Bxd6 {[%clk 0:00:25]} 30. Qa7+ {[%clk 0:00:53]}  Bb7 {[%clk 0:00:25]} 31. Qxa5 {[%clk 0:00:46]}  Qd3 {[%clk 0:00:22]} 32. Qa4+ {[%clk 0:00:23]}  Ke7 {[%clk 0:00:22]} 33. Qc4 {[%clk 0:00:24]}  Qb1+ {[%clk 0:00:16]} 34. Ke2 {[%clk 0:00:22]}  Qb2+ {[%clk 0:00:16]} 35. Kd3 {[%clk 0:00:18]}  f5 {[%clk 0:00:15]} 36. f3 {[%clk 0:00:17]}  Bd5 {[%clk 0:00:13]} 37. Qc3 {[%clk 0:00:16]}  Qxb3 {[%clk 0:00:12]} 38. Qxb3 {[%clk 0:00:16]}  Bxb3 {[%clk 0:00:13]} 39. Rb1 {[%clk 0:00:17]}  Bd5 {[%clk 0:00:13]} 40. e4 {[%clk 0:00:17]}  fxe4+ {[%clk 0:00:12]} 41. fxe4 {[%clk 0:00:18]}  Bc6 {[%clk 0:00:12]} 42. Rb6 {[%clk 0:00:17]}  Bd7 {[%clk 0:00:11]} 43. d5 {[%clk 0:00:15]}  e5 {[%clk 0:00:11]} 44. Kc4 {[%clk 0:00:14]}  Bg4 {[%clk 0:00:11]} 45. Rb7+ {[%clk 0:00:14]}  Kf6 {[%clk 0:00:10]} 46. Kd3 {[%clk 0:00:14]}  Bc5 {[%clk 0:00:08]} 47. Rc7 {[%clk 0:00:14]}  Bd4 {[%clk 0:00:08]} 48. Rc6+ {[%clk 0:00:14]}  Ke7 {[%clk 0:00:08]} 49. Rg6 {[%clk 0:00:14]}  Bd7 {[%clk 0:00:09]} 50. Rg7+ {[%clk 0:00:14]}  Kd6 {[%clk 0:00:09]} 51. Rg6+ {[%clk 0:00:14]}  Kc5 {[%clk 0:00:10]} 52. Rg7 {[%clk 0:00:14]}  Bb5+ {[%clk 0:00:11]} 53. Kd2 {[%clk 0:00:14]}  Kc4 {[%clk 0:00:09]} 54. Rc7+ {[%clk 0:00:13]}  Bc5 {[%clk 0:00:08]} 55. d6 {[%clk 0:00:13]}  Kd4 {[%clk 0:00:08]} 56. d7 {[%clk 0:00:13]}  Bb4+ {[%clk 0:00:08]} 57. Kc1 {[%clk 0:00:13]}  Ba3+ {[%clk 0:00:08]} 58. Kc2 {[%clk 0:00:12]}  Bxd7 {[%clk 0:00:07]} 59. Rxd7+ {[%clk 0:00:12]}  Kxe4 {[%clk 0:00:07]} 60. Ra7 {[%clk 0:00:11]}  Bc5 {[%clk 0:00:08]} 61. Ra4+ {[%clk 0:00:11]}  Bd4 {[%clk 0:00:09]} 62. Kd2 {[%clk 0:00:11]}  Kf3 {[%clk 0:00:08]} 63. Ra3+ {[%clk 0:00:10]}  Ke4 {[%clk 0:00:09]} 64. Rh3 {[%clk 0:00:10]}  Kd5 {[%clk 0:00:09]} 65. Rh5 {[%clk 0:00:09]}  Ke4 {[%clk 0:00:09]} 66. Rh4+ {[%clk 0:00:10]}  Kd5 {[%clk 0:00:09]} 67. Kd3 {[%clk 0:00:10]}  Kc5 {[%clk 0:00:09]} 68. Ke4 {[%clk 0:00:09]}  Kc4 {[%clk 0:00:09]} 69. Rh8 {[%clk 0:00:10]}  Kc5 {[%clk 0:00:09]} 70. Rc8+ {[%clk 0:00:10]}  Kd6 {[%clk 0:00:09]} 71. Rc2 {[%clk 0:00:09]}  Ke6 {[%clk 0:00:09]} 72. Rc6+ {[%clk 0:00:09]}  Kd7 {[%clk 0:00:09]} 73. Kd5 {[%clk 0:00:10]}  Ke7 {[%clk 0:00:07]} 74. Re6+ {[%clk 0:00:10]}  Kd7 {[%clk 0:00:08]} 75. Ra6 {[%clk 0:00:11]}  Ke7 {[%clk 0:00:08]} 76. Rh6 {[%clk 0:00:11]}  Kf7 {[%clk 0:00:08]} 77. Ke4 {[%clk 0:00:11]}  Kg7 {[%clk 0:00:08]} 78. Rb6 {[%clk 0:00:11]}  Kf7 {[%clk 0:00:09]} 79. Ra6 {[%clk 0:00:11]}  Ke7 {[%clk 0:00:10]} 80. Rg6 {[%clk 0:00:11]}  Kf7 {[%clk 0:00:10]} 81. Rc6 {[%clk 0:00:11]}  Ke7 {[%clk 0:00:10]} 82. Kd5 {[%clk 0:00:12]}  Kf7 {[%clk 0:00:10]} 83. Re6 {[%clk 0:00:12]}  Kg7 {[%clk 0:00:09]} 84. Kd6 {[%clk 0:00:13]}  Kf7 {[%clk 0:00:10]} 85. Kd7 {[%clk 0:00:13]}  Kg7 {[%clk 0:00:10]} 86. Ke7 {[%clk 0:00:13]}  Bc5+ {[%clk 0:00:09]} 87. Ke8 {[%clk 0:00:13]}  Bd4 {[%clk 0:00:09]} 88. Kd7 {[%clk 0:00:13]}  Kf7 {[%clk 0:00:09]} 89. Kd6 {[%clk 0:00:14]}  Kg7 {[%clk 0:00:10]} 90. Kd5 {[%clk 0:00:14]}  Kf7 {[%clk 0:00:10]} 91. Ra6 {[%clk 0:00:14]}  Kg7 {[%clk 0:00:11]} 92. Ke4 {[%clk 0:00:14]}  Kf7 {[%clk 0:00:11]} 93. Kf5 {[%clk 0:00:15]}  Ke7 {[%clk 0:00:12]} 94. Re6+ {[%clk 0:00:14]}  Kd7 {[%clk 0:00:12]} 95. Rg6 {[%clk 0:00:15]}  Ke7 {[%clk 0:00:12]} 96. Rg7+ {[%clk 0:00:15]}  Kd6 {[%clk 0:00:12]} 97. Rg6+ {[%clk 0:00:15]}  Kd5 {[%clk 0:00:13]} 98. Rg4 {[%clk 0:00:15]}  Kc4 {[%clk 0:00:13]} 99. Ke4 {[%clk 0:00:16]}  Kc5 {[%clk 0:00:14]} 100. Rg3 {[%clk 0:00:16]}  Kd6 {[%clk 0:00:14]} 101. Rg6+ {[%clk 0:00:17]}  Ke7 {[%clk 0:00:14]} 102. Ra6 {[%clk 0:00:17]}  Kf7 {[%clk 0:00:15]} 103. Kf5 {[%clk 0:00:17]}  Ke7 {[%clk 0:00:15]} 104. Ke4 {[%clk 0:00:17]}  Kd7 {[%clk 0:00:16]} 105. Kd5 {[%clk 0:00:17]}  Ke7 {[%clk 0:00:16]} 106. Ra7+ {[%clk 0:00:17]}  Kf6 {[%clk 0:00:17]} 107. Ke4 {[%clk 0:00:18]}  Ke6 {[%clk 0:00:17]} 108. Ra6+ {[%clk 0:00:18]}  Ke7 {[%clk 0:00:16]} 109. Rg6 {[%clk 0:00:19]}  Kf7 {[%clk 0:00:17]} 1/2-1/2


[Site "https://www.chess.com"]

[Event "Titled Tuesday Blitz February 21 Late 2023"]
[White "Womacka, Mathias"]
[Black "Prieto Aranguren, Alain"]
[WhiteFideId "4611390"]
[BlackFideId "2268906"]
[WhiteElo "2396"]
[BlackElo "2258"]
[Result "1/2-1/2"]
[Round "04"]
[TimeControl "180+2"]
[Date "2023.02.21"]
[WhiteClock "0:00:09"]
[BlackClock "0:00:06"]

1. e4 {[%clk 0:03:00]}  c6 {[%clk 0:02:59]} 2. d4 {[%clk 0:03:00]}  d5 {[%clk 0:02:58]} 3. Nd2 {[%clk 0:03:00]}  a6 {[%clk 0:02:49]} 4. Bd3 {[%clk 0:02:57]}  g6 {[%clk 0:02:45]} 5. h3 {[%clk 0:02:53]}  Bg7 {[%clk 0:02:45]} 6. Ngf3 {[%clk 0:02:54]}  dxe4 {[%clk 0:02:41]} 7. Nxe4 {[%clk 0:02:53]}  Nf6 {[%clk 0:02:41]} 8. Nxf6+ {[%clk 0:02:50]}  exf6 {[%clk 0:02:40]} 9. O-O {[%clk 0:02:47]}  O-O {[%clk 0:02:39]} 10. Bf4 {[%clk 0:02:47]}  a5 {[%clk 0:02:34]} 11. Qd2 {[%clk 0:02:41]}  Na6 {[%clk 0:02:33]} 12. Bh6 {[%clk 0:02:32]}  Nb4 {[%clk 0:02:30]} 13. Bxg7 {[%clk 0:02:29]}  Kxg7 {[%clk 0:02:30]} 14. Be2 {[%clk 0:02:22]}  Re8 {[%clk 0:02:19]} 15. c3 {[%clk 0:02:21]}  Nd5 {[%clk 0:02:19]} 16. Rfe1 {[%clk 0:02:21]}  Qd6 {[%clk 0:02:18]} 17. a4 {[%clk 0:02:12]}  Bd7 {[%clk 0:02:15]} 18. Bc4 {[%clk 0:02:11]}  Nf4 {[%clk 0:02:09]} 19. Rxe8 {[%clk 0:02:02]}  Rxe8 {[%clk 0:02:08]} 20. Re1 {[%clk 0:02:02]}  Rxe1+ {[%clk 0:02:03]} 21. Qxe1 {[%clk 0:02:03]}  Bf5 {[%clk 0:01:46]} 22. Qe3 {[%clk 0:01:54]}  Be6 {[%clk 0:01:35]} 23. Bf1 {[%clk 0:01:47]}  Bd5 {[%clk 0:01:33]} 24. Nd2 {[%clk 0:01:47]}  h5 {[%clk 0:01:03]} 25. Nc4 {[%clk 0:01:46]}  Qc7 {[%clk 0:00:56]} 26. h4 {[%clk 0:01:35]}  Ne6 {[%clk 0:00:43]} 27. Nd2 {[%clk 0:01:14]}  Nf8 {[%clk 0:00:32]} 28. Ne4 {[%clk 0:00:50]}  Nd7 {[%clk 0:00:30]} 29. c4 {[%clk 0:00:35]}  Be6 {[%clk 0:00:24]} 30. Qg3 {[%clk 0:00:26]}  Qxg3 {[%clk 0:00:23]} 31. Nxg3 {[%clk 0:00:26]}  Nb6 {[%clk 0:00:19]} 32. b3 {[%clk 0:00:25]}  Nd7 {[%clk 0:00:19]} 33. Ne4 {[%clk 0:00:24]}  Kf8 {[%clk 0:00:18]} 34. f3 {[%clk 0:00:20]}  Ke7 {[%clk 0:00:17]} 35. Kf2 {[%clk 0:00:21]}  b6 {[%clk 0:00:15]} 36. Ke3 {[%clk 0:00:20]}  Nb8 {[%clk 0:00:13]} 37. Nc3 {[%clk 0:00:19]}  Na6 {[%clk 0:00:12]} 38. Bd3 {[%clk 0:00:19]}  Nb4 {[%clk 0:00:12]} 39. Be4 {[%clk 0:00:19]}  Bd7 {[%clk 0:00:11]} 40. d5 {[%clk 0:00:18]}  c5 {[%clk 0:00:08]} 41. Bb1 {[%clk 0:00:14]}  f5 {[%clk 0:00:08]} 42. Kf4 {[%clk 0:00:13]}  Kf6 {[%clk 0:00:07]} 43. Nd1 {[%clk 0:00:12]}  Bc8 {[%clk 0:00:05]} 44. Ne3 {[%clk 0:00:12]}  Bd7 {[%clk 0:00:05]} 45. Nf1 {[%clk 0:00:10]}  Bc8 {[%clk 0:00:06]} 46. Ng3 {[%clk 0:00:10]}  Bd7 {[%clk 0:00:06]} 47. Ne2 {[%clk 0:00:11]}  Bc8 {[%clk 0:00:05]} 48. Nc3 {[%clk 0:00:10]}  Bd7 {[%clk 0:00:05]} 49. g3 {[%clk 0:00:10]}  Be8 {[%clk 0:00:04]} 50. Nd1 {[%clk 0:00:10]}  Bd7 {[%clk 0:00:04]} 51. Nf2 {[%clk 0:00:10]}  Bc8 {[%clk 0:00:04]} 52. Nh3 {[%clk 0:00:10]}  Bd7 {[%clk 0:00:04]} 53. Ng5 {[%clk 0:00:10]}  Bc8 {[%clk 0:00:05]} 54. Nh7+ {[%clk 0:00:10]}  Kg7 {[%clk 0:00:04]} 55. Ng5 {[%clk 0:00:10]}  Kf6 {[%clk 0:00:05]} 56. Nh3 {[%clk 0:00:10]}  Bd7 {[%clk 0:00:05]} 57. Ng1 {[%clk 0:00:10]}  Bc8 {[%clk 0:00:05]} 58. Ne2 {[%clk 0:00:10]}  Bd7 {[%clk 0:00:06]} 59. Nc1 {[%clk 0:00:10]}  Bc8 {[%clk 0:00:06]} 60. Na2 {[%clk 0:00:10]}  Bd7 {[%clk 0:00:05]} 61. Nxb4 {[%clk 0:00:09]}  axb4 {[%clk 0:00:05]} 62. Bd3 {[%clk 0:00:09]}  Bc8 {[%clk 0:00:05]} 63. Ke3 {[%clk 0:00:08]}  Ke5 {[%clk 0:00:05]} 64. f4+ {[%clk 0:00:09]}  Kd6 {[%clk 0:00:05]} 65. Be2 {[%clk 0:00:08]}  Bd7 {[%clk 0:00:05]} 66. Bf3 {[%clk 0:00:08]}  Bc8 {[%clk 0:00:05]} 67. Kd2 {[%clk 0:00:08]}  Bd7 {[%clk 0:00:05]} 68. Ke3 {[%clk 0:00:08]}  Bc8 {[%clk 0:00:06]} 69. Kd2 {[%clk 0:00:08]}  Bd7 {[%clk 0:00:06]} 70. Ke3 {[%clk 0:00:09]} 1/2-1/2


[Site "https://www.chess.com"]

[Event "Titled Tuesday Blitz February 21 Late 2023"]
[White "Paspuel, Trosky"]
[Black "Bon, Michael"]
[WhiteFideId "3602150"]
[BlackFideId "620696"]
[WhiteElo "1721"]
[BlackElo "2394"]
[Result "0-1"]
[Round "04"]
[TimeControl "180+2"]
[Date "2023.02.21"]
[WhiteClock "0:00:03"]
[BlackClock "0:00:06"]

1. c4 {[%clk 0:03:00]}  e5 {[%clk 0:02:57]} 2. g3 {[%clk 0:03:00]}  Nf6 {[%clk 0:02:56]} 3. Bg2 {[%clk 0:03:00]}  Nc6 {[%clk 0:02:55]} 4. Nc3 {[%clk 0:02:59]}  Bb4 {[%clk 0:02:55]} 5. Nd5 {[%clk 0:03:00]}  Bc5 {[%clk 0:02:35]} 6. a3 {[%clk 0:02:55]}  a6 {[%clk 0:02:28]} 7. b4 {[%clk 0:02:55]}  Ba7 {[%clk 0:02:18]} 8. e3 {[%clk 0:02:55]}  Nxd5 {[%clk 0:02:13]} 9. cxd5 {[%clk 0:02:52]}  Ne7 {[%clk 0:02:13]} 10. Ne2 {[%clk 0:02:42]}  d6 {[%clk 0:02:13]} 11. O-O {[%clk 0:02:41]}  O-O {[%clk 0:02:13]} 12. d4 {[%clk 0:02:40]}  Ng6 {[%clk 0:02:06]} 13. Bb2 {[%clk 0:02:37]}  Re8 {[%clk 0:02:05]} 14. dxe5 {[%clk 0:02:33]}  Nxe5 {[%clk 0:02:04]} 15. h3 {[%clk 0:02:30]}  Bf5 {[%clk 0:01:47]} 16. g4 {[%clk 0:01:58]}  Bd3 {[%clk 0:00:58]} 17. Bxe5 {[%clk 0:01:29]}  Bxe2 {[%clk 0:00:57]} 18. Qxe2 {[%clk 0:01:30]}  Rxe5 {[%clk 0:00:57]} 19. Rac1 {[%clk 0:01:30]}  Bb6 {[%clk 0:00:55]} 20. Rc4 {[%clk 0:01:14]}  Qd7 {[%clk 0:00:54]} 21. Re4 {[%clk 0:00:59]}  Rae8 {[%clk 0:00:51]} 22. Rxe5 {[%clk 0:00:59]}  Rxe5 {[%clk 0:00:52]} 23. Rc1 {[%clk 0:00:39]}  f5 {[%clk 0:00:50]} 24. gxf5 {[%clk 0:00:36]}  Rxf5 {[%clk 0:00:44]} 25. Qg4 {[%clk 0:00:34]}  Qf7 {[%clk 0:00:41]} 26. Be4 {[%clk 0:00:14]}  Rxf2 {[%clk 0:00:17]} 27. Qc8+ {[%clk 0:00:15]}  Qf8 {[%clk 0:00:16]} 28. Qxf8+ {[%clk 0:00:12]}  Rxf8 {[%clk 0:00:16]} 29. Rc3 {[%clk 0:00:08]}  Re8 {[%clk 0:00:15]} 30. Bf5 {[%clk 0:00:04]}  Bxe3+ {[%clk 0:00:15]} 31. Kg2 {[%clk 0:00:05]}  Bb6 {[%clk 0:00:16]} 32. Be6+ {[%clk 0:00:05]}  Kh8 {[%clk 0:00:16]} 33. a4 {[%clk 0:00:06]}  a5 {[%clk 0:00:15]} 34. bxa5 {[%clk 0:00:06]}  Bxa5 {[%clk 0:00:16]} 35. Rb3 {[%clk 0:00:07]}  Bb6 {[%clk 0:00:16]} 36. a5 {[%clk 0:00:06]}  Bxa5 {[%clk 0:00:16]} 37. Rxb7 {[%clk 0:00:07]}  Bb6 {[%clk 0:00:16]} 38. Kf3 {[%clk 0:00:05]}  g6 {[%clk 0:00:16]} 39. Kg4 {[%clk 0:00:05]}  Kg7 {[%clk 0:00:17]} 40. h4 {[%clk 0:00:04]}  Kf6 {[%clk 0:00:17]} 41. Kf3 {[%clk 0:00:02]}  Ke5 {[%clk 0:00:17]} 42. Kg4 {[%clk 0:00:03]}  Rf8 {[%clk 0:00:17]} 43. Kg3 {[%clk 0:00:01]}  Kd4 {[%clk 0:00:17]} 44. Kg4 {[%clk 0:00:01]}  Kc5 {[%clk 0:00:14]} 45. Kg5 {[%clk 0:00:02]}  Kb5 {[%clk 0:00:15]} 46. Bd7+ {[%clk 0:00:01]}  Ka6 {[%clk 0:00:14]} 47. Bc6 {[%clk 0:00:02]}  Rf5+ {[%clk 0:00:14]} 48. Kh6 {[%clk 0:00:02]}  Rh5+ {[%clk 0:00:14]} 49. Kg7 {[%clk 0:00:03]}  Rxh4 {[%clk 0:00:13]} 50. Rb8 {[%clk 0:00:04]}  Rh2 {[%clk 0:00:08]} 51. Ra8+ {[%clk 0:00:03]}  Ba7 {[%clk 0:00:08]} 52. Rc8 {[%clk 0:00:04]}  Kb6 {[%clk 0:00:08]} 53. Re8 {[%clk 0:00:02]}  g5 {[%clk 0:00:08]} 54. Re4 {[%clk 0:00:01]}  h5 {[%clk 0:00:06]} 55. Rb4+ {[%clk 0:00:02]}  Kc5 {[%clk 0:00:06]} 56. Ra4 {[%clk 0:00:03]}  Bb6 {[%clk 0:00:06]} 57. Ra3 {[%clk 0:00:02]}  g4 {[%clk 0:00:06]} 58. Rc3+ {[%clk 0:00:02]}  Kd4 {[%clk 0:00:07]} 59. Rc2 {[%clk 0:00:03]}  Rxc2 {[%clk 0:00:06]} 0-1


[Site "https://www.chess.com"]

[Event "Titled Tuesday Blitz February 21 Late 2023"]
[White "CheckBits"]
[Black "Jenkins, Drake"]
[BlackFideId "2022397"]
[WhiteElo "2452"]
[BlackElo "2130"]
[Result "1-0"]
[Round "04"]
[TimeControl "180+2"]
[Date "2023.02.21"]
[WhiteClock "0:00:23"]
[BlackClock "0:00:01"]

1. d4 {[%clk 0:02:53]}  Nf6 {[%clk 0:02:59]} 2. Nf3 {[%clk 0:02:53]}  c5 {[%clk 0:02:59]} 3. e3 {[%clk 0:02:49]}  g6 {[%clk 0:02:59]} 4. Bd3 {[%clk 0:02:48]}  Bg7 {[%clk 0:02:58]} 5. O-O {[%clk 0:02:48]}  d6 {[%clk 0:02:58]} 6. c3 {[%clk 0:02:36]}  Nbd7 {[%clk 0:02:57]} 7. Nbd2 {[%clk 0:02:36]}  O-O {[%clk 0:02:58]} 8. e4 {[%clk 0:02:34]}  e5 {[%clk 0:02:56]} 9. d5 {[%clk 0:02:32]}  a6 {[%clk 0:02:45]} 10. a4 {[%clk 0:02:32]}  Rb8 {[%clk 0:02:45]} 11. Nc4 {[%clk 0:02:25]}  Qc7 {[%clk 0:02:38]} 12. a5 {[%clk 0:02:25]}  b5 {[%clk 0:02:39]} 13. axb6 {[%clk 0:02:24]}  Nxb6 {[%clk 0:02:39]} 14. Nfd2 {[%clk 0:02:13]}  Ne8 {[%clk 0:02:23]} 15. Na5 {[%clk 0:01:30]}  f5 {[%clk 0:02:12]} 16. f3 {[%clk 0:01:26]}  f4 {[%clk 0:02:00]} 17. Qe2 {[%clk 0:01:23]}  Ra8 {[%clk 0:01:55]} 18. Ndc4 {[%clk 0:01:19]}  Nd7 {[%clk 0:01:50]} 19. Nc6 {[%clk 0:01:14]}  Ndf6 {[%clk 0:01:47]} 20. b4 {[%clk 0:01:12]}  cxb4 {[%clk 0:01:35]} 21. Nxb4 {[%clk 0:01:05]}  g5 {[%clk 0:01:09]} 22. Nc6 {[%clk 0:01:04]}  g4 {[%clk 0:01:06]} 23. Ba3 {[%clk 0:01:01]}  Bd7 {[%clk 0:00:56]} 24. N4a5 {[%clk 0:00:57]}  g3 {[%clk 0:00:28]} 25. h3 {[%clk 0:00:45]}  Qb6+ {[%clk 0:00:17]} 26. Kh1 {[%clk 0:00:43]}  Qe3 {[%clk 0:00:15]} 27. Rfe1 {[%clk 0:00:38]}  Qxe2 {[%clk 0:00:14]} 28. Rxe2 {[%clk 0:00:38]}  Kf7 {[%clk 0:00:06]} 29. Rb2 {[%clk 0:00:36]}  h5 {[%clk 0:00:04]} 30. Rb7 {[%clk 0:00:36]}  Rd8 {[%clk 0:00:02]} 31. Bxa6 {[%clk 0:00:32]}  Kg6 {[%clk 0:00:02]} 32. c4 {[%clk 0:00:31]}  h4 {[%clk 0:00:01]} 33. Rab1 {[%clk 0:00:29]}  Nh5 {[%clk 0:00:01]} 34. Rxd7 {[%clk 0:00:23]} 1-0


[Site "https://www.chess.com"]

[Event "Titled Tuesday Blitz February 21 Late 2023"]
[White "Liu, Casper"]
[Black "Bambino Filho, Antonio Carlos"]
[WhiteFideId "1454153"]
[BlackFideId "2113163"]
[WhiteElo "2278"]
[BlackElo "2144"]
[Result "0-1"]
[Round "04"]
[TimeControl "180+2"]
[Date "2023.02.21"]
[WhiteClock "0:00:20"]
[BlackClock "0:00:44"]

1. d4 {[%clk 0:03:00]}  Nf6 {[%clk 0:02:54]} 2. Nf3 {[%clk 0:03:00]}  d5 {[%clk 0:02:52]} 3. Bf4 {[%clk 0:03:01]}  c5 {[%clk 0:02:52]} 4. e3 {[%clk 0:03:01]}  Nc6 {[%clk 0:02:50]} 5. Nbd2 {[%clk 0:03:00]}  e6 {[%clk 0:02:40]} 6. c3 {[%clk 0:02:58]}  Qb6 {[%clk 0:02:39]} 7. Qb3 {[%clk 0:02:51]}  Be7 {[%clk 0:02:31]} 8. Bd3 {[%clk 0:02:43]}  c4 {[%clk 0:02:28]} 9. Qxb6 {[%clk 0:02:43]}  axb6 {[%clk 0:02:29]} 10. Bc2 {[%clk 0:02:42]}  b5 {[%clk 0:02:30]} 11. e4 {[%clk 0:02:41]}  b4 {[%clk 0:02:27]} 12. exd5 {[%clk 0:02:41]}  Nxd5 {[%clk 0:02:21]} 13. Be5 {[%clk 0:02:36]}  Nxe5 {[%clk 0:02:06]} 14. Nxe5 {[%clk 0:02:34]}  b5 {[%clk 0:02:07]} 15. cxb4 {[%clk 0:02:30]}  Bxb4 {[%clk 0:01:59]} 16. O-O {[%clk 0:02:26]}  Bxd2 {[%clk 0:01:57]} 17. a4 {[%clk 0:02:22]}  Bf4 {[%clk 0:01:36]} 18. axb5 {[%clk 0:02:19]}  Rxa1 {[%clk 0:01:34]} 19. Rxa1 {[%clk 0:02:20]}  Bxe5 {[%clk 0:01:34]} 20. dxe5 {[%clk 0:02:20]}  O-O {[%clk 0:01:32]} 21. Ra4 {[%clk 0:02:15]}  Bb7 {[%clk 0:01:26]} 22. Rxc4 {[%clk 0:02:11]}  Rc8 {[%clk 0:01:25]} 23. b3 {[%clk 0:02:03]}  Nb6 {[%clk 0:01:24]} 24. Rd4 {[%clk 0:01:44]}  Bd5 {[%clk 0:01:20]} 25. Bd1 {[%clk 0:01:39]}  Rc1 {[%clk 0:01:20]} 26. f4 {[%clk 0:01:37]}  Kf8 {[%clk 0:01:17]} 27. Kf2 {[%clk 0:01:36]}  Ke7 {[%clk 0:01:16]} 28. g4 {[%clk 0:01:32]}  Rb1 {[%clk 0:01:14]} 29. Rd3 {[%clk 0:01:28]}  Rb2+ {[%clk 0:01:13]} 30. Ke3 {[%clk 0:01:27]}  Rxh2 {[%clk 0:01:09]} 31. Kd4 {[%clk 0:01:27]}  Kd7 {[%clk 0:00:58]} 32. Kc5 {[%clk 0:01:24]}  Kc7 {[%clk 0:00:58]} 33. f5 {[%clk 0:01:02]}  Nd7+ {[%clk 0:00:51]} 34. Kd4 {[%clk 0:01:01]}  Kb6 {[%clk 0:00:51]} 35. Rc3 {[%clk 0:00:58]}  Rd2+ {[%clk 0:00:51]} 36. Rd3 {[%clk 0:00:56]}  Rxd3+ {[%clk 0:00:51]} 37. Kxd3 {[%clk 0:00:57]}  Nxe5+ {[%clk 0:00:50]} 38. Kd4 {[%clk 0:00:53]}  Nd7 {[%clk 0:00:50]} 39. Be2 {[%clk 0:00:51]}  Kc7 {[%clk 0:00:48]} 40. b4 {[%clk 0:00:49]}  Kd6 {[%clk 0:00:48]} 41. fxe6 {[%clk 0:00:46]}  fxe6 {[%clk 0:00:48]} 42. Bd3 {[%clk 0:00:45]}  e5+ {[%clk 0:00:48]} 43. Ke3 {[%clk 0:00:46]}  h6 {[%clk 0:00:46]} 44. Bf5 {[%clk 0:00:43]}  Nb6 {[%clk 0:00:46]} 45. Bd3 {[%clk 0:00:30]}  Bc4 {[%clk 0:00:43]} 46. Bxc4 {[%clk 0:00:31]}  Nxc4+ {[%clk 0:00:44]} 47. Ke4 {[%clk 0:00:31]}  Ke6 {[%clk 0:00:42]} 48. Kd3 {[%clk 0:00:27]}  Nb6 {[%clk 0:00:43]} 49. Ke4 {[%clk 0:00:27]}  g6 {[%clk 0:00:43]} 50. Ke3 {[%clk 0:00:25]}  Kd5 {[%clk 0:00:43]} 51. Kd3 {[%clk 0:00:25]}  e4+ {[%clk 0:00:44]} 52. Ke3 {[%clk 0:00:24]}  Ke5 {[%clk 0:00:45]} 53. Ke2 {[%clk 0:00:23]}  Kd4 {[%clk 0:00:44]} 54. Kd2 {[%clk 0:00:23]}  e3+ {[%clk 0:00:45]} 55. Ke2 {[%clk 0:00:24]}  Ke4 {[%clk 0:00:45]} 56. Ke1 {[%clk 0:00:21]}  h5 {[%clk 0:00:46]} 57. g5 {[%clk 0:00:18]}  h4 {[%clk 0:00:45]} 58. Kf1 {[%clk 0:00:19]}  Kf3 {[%clk 0:00:45]} 59. Kg1 {[%clk 0:00:18]}  e2 {[%clk 0:00:45]} 60. Kh2 {[%clk 0:00:19]}  e1=Q {[%clk 0:00:44]} 61. Kh3 {[%clk 0:00:20]}  Qg3# {[%clk 0:00:44]} 0-1


[Site "https://www.chess.com"]